Workbook

Sheet ÚVOD
B2: VÍTEJTE V PROGRAMU
B5: který slouží pro optimalizaci návrhu skeletového konstrukčního systému vícepodlažní budovy
C7: Úvod
B9: Program slouží pro optimalizaci návrhu skeletového konstrukčního systému vícepodlažní budovy. Ceny zobrazované programem neodpovídají ceně celé konstrukce, program zohledňuje pouze střední pole konstrukce. Pro vzájemné porovnávání variant jsou ceny zcela dostatečné. V programu lze porovnávat dvě varianty konstrukčního systému.
B10: · Železobetonový monolitický strop s viditelnými průvlaky
B11: · Železobetonový monolitický strop se skrytými průvlaky
C12: Tvorba databáze
B14: Přejděte do listu „VYPOCET“. Zde je možno zvolit zatížení od podlahy a zatížení od příček. Dále můžete upravit jednotkové ceny. Lze zde zohlednit například cenu za dopravu na staveniště. Poté jste správně zvolili data, klikněte na tlačítko „POČÍTEJ“. Tato akce zablokuje Excel (i ostatní otevřené soubory v Excelu) na 10 – 20 min v závislosti na výkonosti počítače.
C15: Data pro zobrazení
B17: Po dokončení výpočtu přejděte do listu „GRAFY“. Zde je potřeba zvolit Typ zatížení, počet pater a světlou výšku konstrukčního systému. Data volíme v nabídce v levé části obrazovky. Po zvolení vámi požadovaných hodnot klikněte na tlačítko „GENERUJ“. Generování dat zabere maximálně 10s. Tyto data můžete změnit kdykoliv v průběhu práce s programem, je však nutné volbu potvrdit kliknutím na tlačítko „GENERUJ“.
C19: Práce s daty
B21: Následně si můžete zvolit, jaká data budou zobrazena. První možností v nabídce je typ grafu. Zde zvolte, které z konstrukčních variant má prostorový graf odpovídat. Dále můžete zvolit na kolik barevných částí se graf rozdělí. Legenda k barvám je umístěna pod nabídkou. Dvojklikem do oblasti prostorového grafu se zobrazí v horní části displeje informace o dané konstrukční variantě. Jde o cenu za m2 užitné plochy, tloušťku desky a procentuální využití plochy. Procentuální využití plochy udává kolik % plochy není zabráno svislými konstrukcemi.

Sheet VYPOCET
B2: PARAMETRY KONSTRUKCE
B4: potřebné pro výpočet databáze | F4: objemová hmostnost podlahy | J4: gp= | K4: 2 | L4: kN/m2
F5: nahodilé zatížení od příček | J5: qp= | K5: 1.2 | L5: kN/m2
B6: spuštění tvorby databáze (15 min)
C8: TŘÍDY BETONU
C10: onzačení betonu | D10: fck | E10: fck,cube | F10: fcm | G10: fctm | H10: fctk0,05 | I10: fctk0,95 | J10: Ecm | K10: Ecu | M10: cena deska [kč/m3] | N10: cena průvlak [kč/m3] | O10: cena sloup [kč/m3]
D11: Mpa | E11: Mpa | F11: Mpa | G11: Mpa | H11: Mpa | I11: Mpa | J11: Gpa | K11: 0 | X11: ceny deska | Z11: V_CENA
B12: =ROW(B12)-ROW($B$11) -> 1 | C12: C 12/15 | D12: 12 | E12: 15 | F12: 20 | G12: 1.6 | H12: 1.1 | I12: 2 | J12: 27 | K12: 3.5 | L12: 25 | M12: 2530 | N12: 2520 | O12: 2830 | Y12: kolik | Z12: jednoka
B13: 2 | C13: C 16/20 | D13: 16 | E13: 20 | F13: 24 | G13: 1.9 | H13: 1.3 | I13: 2.5 | J13: 29 | K13: 3.5 | L13: 25 | M13: 2660 | N13: 2650 | O13: 2970 | X13: deska | Y13: =N22+N23+N24+N25+(M22+M23+M24+M25+M26)*N38 -> 1016.668 | Z13: kč/m2
B14: 3 | C14: C 20/25 | D14: 20 | E14: 25 | F14: 28 | G14: 2.2 | H14: 1.5 | I14: 2.9 | J14: 30 | K14: 3.5 | L14: 25 | M14: 2740 | N14: 2730 | O14: 3050 | X14: deska | Y14: =2.256*N38 -> 591.072 | Z14: kč/m3
B15: 4 | C15: C 25/30 | D15: 25 | E15: 30 | F15: 33 | G15: 2.6 | H15: 1.8 | I15: 3.3 | J15: 31 | K15: 3.5 | L15: 25 | M15: 2850 | N15: 2840 | O15: 3160 | X15: deska | Y15: =N26+M26*N38 -> 38376.41 | Z15: kč/t
B16: 5 | C16: C 30/37 | D16: 30 | E16: 37 | F16: 38 | G16: 2.9 | H16: 2 | I16: 3.8 | J16: 32 | K16: 3.5 | L16: 25 | M16: 3160 | N16: 3140 | O16: 3460 | X16: ceny průvlak | Z16: V_PRUVLAK
B17: 6 | C17: C 35/45 | D17: 35 | E17: 45 | F17: 43 | G17: 3.2 | H17: 2.2 | I17: 4.2 | J17: 34 | K17: 3.5 | L17: 25 | M17: 3320 | N17: 3300 | O17: 3620 | Y17: kolik | Z17: jednoka
I18: TABULKY PRO OCEŇOVÁNÍ KONSTRUKCE | X18: průvlak | Y18: =N28+N29+N30+N31+(M28+M29+M30+M31)*N38 -> 1163.4764 | Z18: kč/m2
X19: průvlak | Y19: =N38*2.256 -> 591.072 | Z19: kč/m3
J20: DESKA | M20: Váha pro přesun [t] | N20: CENA | X20: průvlak | Y20: =N32+M32*N38 -> 37776.41 | Z20: kč/t
C21: TYPY ZATÍŽENÍ
I22: =ROW(I22)-ROW($I$22)+1 -> 1 | J22: deska - zřízení bednění | M22: 0.002 | N22: 369 | O22: kč/m2 | X22: ceny sloup | Z22: V_SLOUP
C23: typ zatížení | D23: Ψ0 | E23: Ψ1 | F23: Ψ2 | G23: zatížení | I23: =ROW(I23)-ROW($I$22)+1 -> 2 | J23: deska - odstranění bednění | M23: 0 | N23: 112 | O23: kč/m2 | Y23: kolik | Z23: jednoka
B24: =ROW(B24)-ROW($B$23) -> 1 | C24: A - Obytné plochy | D24: 0.7 | E24: 0.5 | F24: 0.3 | G24: 1.5 | I24: =ROW(I24)-ROW($I$22)+1 -> 3 | J24: deska - zřízení podepření | M24: 0.007 | N24: 214 | O24: kč/m2 | X24: sloup | Y24: =N34+N35+(M34+M35)*N38 -> 458.82 | Z24: kč/m2
B25: 2 | C25: B - kancelářské plochy | D25: 0.7 | E25: 0.5 | F25: 0.3 | G25: 2.5 | I25: =ROW(I25)-ROW($I$22)+1 -> 4 | J25: deska - odstranění podepření | M25: 0 | N25: 42.9 | O25: kč/m2 | X25: sloup | Y25: =N38*2.256 -> 591.072 | Z25: kč/m3
B26: 3 | C26: C1 shromažďovací plochy | D26: 0.7 | E26: 0.7 | F26: 0.6 | G26: 3 | I26: =ROW(I26)-ROW($I$22)+1 -> 5 | J26: deska - cena ocel | M26: 1.055 | N26: 38100 | O26: kč/t | X26: sloup | Y26: =N36+M36*N38 -> 37375.624 | Z26: kč/t
B27: 4 | C27: C2 shromažďovací plochy | D27: 0.7 | E27: 0.7 | F27: 0.6 | G27: 4 | J27: PRŮVLAK
B28: 5 | C28: C3/C4/C5 shromažďovací plochy | D28: 0.7 | E28: 0.7 | F28: 0.6 | G28: 5 | I28: =ROW(I28)-ROW($I$23)+1 -> 6 | J28: průvlak - zřízení bednění | M28: 0.001 | N28: 384 | O28: kč/m2
B29: 6 | C29: D1/D2 obchodní plochy | D29: 0.7 | E29: 0.7 | F29: 0.6 | G29: 5 | I29: =ROW(I29)-ROW($I$23)+1 -> 7 | J29: průvlak - odstranění bednění | M29: 0 | N29: 80.9 | O29: kč/m2
I30: =ROW(I30)-ROW($I$23)+1 -> 8 | J30: průvlak - zřízení podepření | M30: 0.0012 | N30: 574 | O30: kč/m2
I31: =ROW(I31)-ROW($I$23)+1 -> 9 | J31: průvlak - odstanění podepření | M31: 0 | N31: 124 | O31: kč/m2
I32: =ROW(I32)-ROW($I$23)+1 -> 10 | J32: průvlak - ocel | M32: 1.055 | N32: 37500 | O32: kč/t
J33: SLOUP
C34: VLASTNOSTI BETONÁŘSKÉ OCELE | I34: =ROW(I34)-ROW($I$24)+1 -> 11 | J34: sloup - zřízení bednění | M34: 0.01 | N34: 402 | O34: kč/m2
I35: =ROW(I35)-ROW($I$24)+1 -> 12 | J35: sloup - odstranění bednění | M35: 0 | N35: 54.2 | O35: kč/m2
C36: V_OCEL | D36: Fyk(Mpa) | E36: Fyd(Mpa) | F36: Es(Gpa) | G36: ob.hmot | I36: =ROW(I36)-ROW($I$24)+1 -> 13 | J36: sloup - ocel | M36: 1.052 | N36: 37100 | O36: kč/t
D37: Mpa | E37: Mpa | F37: Gpa | G37: kg/m3 | J37: OSTATNÍ
B38: =ROW(B38)-ROW($B$38)+1 -> 1 | C38: ocel B500 | D38: 500 | E38: 435 | F38: 200 | G38: 7850 | I38: =ROW(I38)-ROW($I$25)+1 -> 14 | J38: vnitrostaveništní přesun | N38: 262 | O38: kč/t

Sheet GRAFY
H1: aktualizace dat pomocí dvojkliku do požadovaného místa v grafu | BZ1: 1 | CA1: m deska
B2: PARAMETRY KONSTRUKCE | H2: Cena za m2 | M2: =IF(Z_CENA=0,"",Z_CENA) ->  | P2: kč | T2: Tl. Desky | X2: =IF(Z_TLD=0,"",Z_TLD) ->  | AA2: m | AC2: využitá plocha | AI2: =IF(Z_PLOCHA=0,"",Z_PLOCHA) ->  | AL2: % | BR2: pruvlak fix | BY2: D22 | BZ2: 2 | CA2: m průvlak
BQ3: G_ROZPON | BR3: G1_CENA | BS3: G1_CENA | BU3: deska fix | BZ3: =IF(D22=CA1,1,IF(D22=CA2,2,0)) -> 1
C4: Typ zatížení | H4: R O Z P O N P R Ů V L A K U | BM4: PATRA | BN4: VÝŠKA PATRA | BQ4: 1.8 | BR4: =IF(INDEX($BL$52:$CP$83,BT5,$BQ$36)=0,"",INDEX($BL$52:$CP$83,BT5,$BQ$36)) ->  | BS4: =IF(INDEX(G_DPS_CENY,BT5,$BQ$36)=0,"",INDEX(G_DPS_CENY,BT5,$BQ$36)) ->  | BU4: G_ROZPON | BV4: G1_CENA | BW4: G1_CENA | BY4: DO GRAFU | CC4: seznam barev | CH4: OD? | CL4: max horní | CN4: =MAX(G_DP_CENY) -> 0 | CP4: min horní | CR4: =MIN(G_DP_CENY) -> 0
G5: [m] | H5: 2 | J5: 2.4 | L5: 2.8 | N5: 3.2 | P5: 3.6 | R5: 4 | T5: 4.4 | V5: 4.8 | X5: 5.2 | Z5: 5.6 | AB5: 6 | AD5: 6.4 | AF5: 6.8 | AH5: 7.2 | AJ5: 7.6 | AL5: 8 | BM5: 1 | BN5: 2 | BQ5: 2 | BT5: 1 | BU5: 2 | BV5: =IF(INDEX($BL$52:$CP$83,$BU$36,BT5)=0,"",INDEX($BL$52:$CP$83,$BU$36,BT5)) ->  | BW5: =IF(INDEX(G_DPS_CENY,$BU$36,BT5)=0,"",INDEX(G_DPS_CENY,$BU$36,BT5)) ->  | BZ5: =IF($BZ$3=1,BV5,IF($BZ$3=2,BR5,0)) ->  | CA5: =IF($BZ$3=1,BW5,IF($BZ$3=2,BS5,0)) ->  | CC5: 1. tmavě modrá | CD5: 1 | CH5: 5 | CL5: max spodní | CN5: =MAX(G_DPS_CENY) -> 0 | CP5: min spodní | CR5: =MIN(G_DPS_CENY) -> 0
B6: =MATCH(C6,VYPOCET!C24:C29) -> 5 | C6: C3/C4/C5 shromažďovací plochy | F6: ROZPON DESKY | G6: 2 | H6: =H51 ->  | I6: =I51 ->  | BM6: 2 | BN6: 2.1 | BQ6: 2.2 | BT6: 2 | BU6: 2.2 | CC6: 2. světle modrá | CD6: 2 | CH6: 5 | CL6: max celkové | CN6: =MAX(CN4:CN5) -> 0 | CP6: min celkové | CR6: =MIN(CR4:CR5) -> 0
C7: Počet pater | G7: 2.2 | H7: =H52 ->  | BM7: 3 | BN7: 2.2 | BQ7: 2.4 | BT7: 3 | BU7: 2.4 | CC7: 3. bleděmodrá | CD7: 3 | CH7: 5
G8: 2.4 | H8: =H53 ->  | I8: =I53 ->  | BM8: 4 | BN8: 2.3 | BQ8: 2.6 | BT8: 4 | BU8: 2.6 | CC8: 4.tmavší zelená | CD8: 4 | CH8: 5 | CI8: 4 | CS8: společně? 1 = ano 0 = ne
C9: 2 | D9: pater | G9: 2.6 | H9: =H54 ->  | I9: =I54 ->  | BM9: 5 | BN9: 2.4 | BQ9: 2.8 | BT9: 5 | BU9: 2.8 | BZ9: =IF($BZ$3=1,BV9,IF($BZ$3=2,BR9,0)) ->  | CA9: =IF($BZ$3=1,BW9,IF($BZ$3=2,BS9,0)) ->  | CC9: 5. světle zelená | CD9: 5 | CH9: 5 | CI9: 5 | CS9: =IF(C18=D51,1,0) -> 0
C10: Světlá výška | G10: 2.8 | H10: =H55 ->  | I10: =I55 ->  | BM10: 6 | BN10: 2.5 | BQ10: 3 | BT10: 6 | BU10: 3 | BZ10: =IF($BZ$3=1,BV10,IF($BZ$3=2,BR10,0)) ->  | CA10: =IF($BZ$3=1,BW10,IF($BZ$3=2,BS10,0)) ->  | CC10: 6. žlutá | CD10: 6 | CH10: 5 | CI10: 6
G11: 3 | H11: =H56 ->  | I11: =I56 ->  | BM11: 7 | BN11: 2.6 | BQ11: 3.2 | BT11: 7 | BU11: 3.2 | CC11: 7. žlutooranžová | CD11: 7 | CH11: 4 | CI11: 7 | CV11: min | CX11: =IF(CS9=1, CR6,CR5) -> 0
C12: 4 | D12: m | G12: 3.2 | H12: =H57 ->  | I12: =I57 ->  | BM12: 8 | BN12: 2.7 | BQ12: 3.4 | BT12: 8 | BU12: 3.4 | CC12: 8. oranžová | CD12: 8 | CH12: 3 | CI12: 8 | CV12: max | CX12: =IF(CS9=1,CN6,CN5) -> 0
G13: 3.4 | H13: =H58 ->  | I13: =I58 ->  | BM13: 9 | BN13: 2.8 | BQ13: 3.6 | BT13: 9 | BU13: 3.6 | CC13: 9. oranžovočervená | CD13: 9 | CH13: 2 | CI13: 9 | CV13: počet b | CX13: =BJ26 -> 10
G14: 3.6 | H14: =H59 ->  | I14: =I59 ->  | BM14: 10 | BN14: 2.9 | BQ14: 3.8 | BT14: 10 | BU14: 3.8 | CC14: 10. červená | CD14: 10 | CH14: 1 | CI14: 10 | CV14: od které | CX14: =BJ27 -> 1
B15: PRÁCE S DATY | G15: 3.8 | H15: =H60 ->  | I15: =I60 ->  | BM15: 11 | BN15: 3 | BQ15: 4 | BT15: 11 | BU15: 4 | CC15: id zvolené | CD15: =INDEX(CH5:CH14,C20,1) -> 1 | CV15: rozdíl | CX15: =CX12-CX11 -> 0
G16: 4 | H16: =H61 ->  | I16: =I61 ->  | BM16: 12 | BN16: 3.1 | BQ16: 4.2 | BT16: 12 | BU16: 4.2 | CV16: krok | CX16: =CX15/(CX13) -> 0
C17: Typ grafu? | G17: 4.2 | H17: =H62 ->  | I17: =I62 ->  | BM17: 13 | BN17: 3.2 | BQ17: 4.4 | BT17: 13 | BU17: 4.4
C18: viditelný průvlak | G18: 4.4 | H18: =H63 ->  | I18: =I63 ->  | BM18: 14 | BN18: 3.3 | BQ18: 4.6 | BT18: 14 | BU18: 4.6
C19: Počet barev v grafu | G19: 4.6 | H19: =H64 ->  | I19: =I64 ->  | BM19: 15 | BN19: 3.4 | BQ19: 4.8 | BT19: 15 | BU19: 4.8
C20: 10 | G20: 4.8 | H20: =H65 ->  | I20: =I65 ->  | BM20: 16 | BN20: 3.5 | BQ20: 5 | BT20: 16 | BU20: 5
C21: zamčení rozponu | G21: 5 | H21: =H66 ->  | I21: =I66 ->  | BM21: 17 | BN21: 3.6 | BQ21: 5.2 | BT21: 17 | BU21: 5.2
C22: 7.2 | D22: m deska | G22: 5.2 | H22: =H67 ->  | I22: =I67 ->  | BM22: 18 | BN22: 3.7 | BQ22: 5.4 | BT22: 18 | BU22: 5.4
G23: 5.4 | H23: =H68 ->  | I23: =I68 ->  | BM23: 19 | BN23: 3.8 | BQ23: 5.6 | BT23: 19 | BU23: 5.6
C24: LEGENDA CEN | G24: 5.6 | H24: =H69 ->  | I24: =I69 ->  | BH24: min | BJ24: =MIN(H6:AL36) -> 0 | BM24: 20 | BN24: 3.9 | BQ24: 5.8 | BT24: 20 | BU24: 5.8
G25: 5.8 | H25: =H70 ->  | I25: =I70 ->  | BH25: max | BJ25: =MAX(H6:AL36) -> 0 | BN25: 4 | BQ25: 6 | BT25: 21 | BU25: 6
C26: OD | D26: DO | G26: 6 | H26: =H71 ->  | I26: =I71 ->  | BH26: počet b | BJ26: =C20 -> 10 | BQ26: 6.2 | BT26: 22 | BU26: 6.2
C27: =BM33 -> 0 | D27: =IF(BN33=-1,"",BN33) ->  | G27: 6.2 | H27: =H72 ->  | I27: =I72 ->  | BH27: od které | BJ27: =CD15 -> 1 | BQ27: 6.4 | BT27: 23 | BU27: 6.4
C28: =BM34 -> 0 | D28: =IF(BN34=-1,"",BN34) ->  | G28: 6.4 | H28: =H73 ->  | I28: =I73 ->  | BH28: rozdíl | BJ28: =BJ25-BJ24 -> 0 | BQ28: 6.6 | BT28: 24 | BU28: 6.6
C29: 0 | G29: 6.6 | H29: =H74 ->  | I29: =I74 ->  | BH29: krok | BJ29: =BJ28/(BJ26) -> 0 | BQ29: 6.8 | BT29: 25 | BU29: 6.8
C30: 0 | G30: 6.8 | H30: =H75 ->  | I30: =I75 ->  | BQ30: 7 | BT30: 26 | BU30: 7
C31: 0 | G31: 7 | H31: =H76 ->  | I31: =I76 ->  | BQ31: 7.2 | BT31: 27 | BU31: 7.2
C32: =BM38 -> 0 | G32: 7.2 | H32: =H77 ->  | I32: =I77 ->  | BF32: 1 | BG32: =IF(BF32>=$BJ$27,1,0) -> 1 | BH32: =BG32 -> 1 | BI32: =$BJ$24+$BJ$29*(BH32-1) -> 0 | BQ32: 7.4 | BT32: 28 | BU32: 7.4
C33: 0 | G33: 7.4 | H33: =H78 ->  | I33: =I78 ->  | BF33: 2 | BG33: 1 | BH33: =BG33+BH32 -> 2 | BI33: 0 | BJ33: 1 | BK33: 140 | BM33: =BJ24 -> 0 | BN33: =BJ24+BJ29-1 -> -1 | BO33: =IF(BN33=$BJ$25,1,0) -> 0 | BQ33: 7.6 | BT33: 29 | BU33: 7.6
C34: 0 | G34: 7.6 | H34: =H79 ->  | I34: =I79 ->  | BF34: 3 | BG34: 1 | BH34: 3 | BI34: 0 | BJ34: 2 | BK34: 140 | BM34: =BN33+1 -> 0 | BN34: =BM34+$BJ$29-1 -> -1 | BO34: =IF(BN34=$BJ$25,1,0) -> 0 | BQ34: 7.8 | BT34: 30 | BU34: 7.8
C35: 0 | G35: 7.8 | H35: =H80 ->  | I35: =I80 ->  | BF35: 4 | BG35: 1 | BH35: 4 | BI35: 0 | BJ35: 3 | BK35: 120 | BM35: =BN34+1 -> 0 | BN35: =BM35+$BJ$29-1 -> -1 | BO35: 0 | BQ35: 8 | BT35: 31 | BU35: 8
C36: =BM42 -> 0 | G36: 8 | H36: =H81 ->  | I36: =I81 ->  | BF36: 5 | BG36: 1 | BH36: 5 | BI36: 0 | BJ36: 4 | BK36: 100 | BM36: 0 | BN36: -1 | BO36: 0 | BQ36: =C22 -> 7.2 | BR36: Viditelný průvlak | BS36: Skrytý průvlak | BT36: 32 | BU36: =C22 -> 7.2 | BV36: Viditelný průvlak | BW36: Skrytý průvlak
BF37: 6 | BG37: 1 | BH37: 6 | BI37: 0 | BJ37: 5 | BK37: 60 | BM37: 0 | BN37: -1 | BO37: 0
BF38: 7 | BG38: 1 | BH38: 7 | BI38: 0 | BJ38: 6 | BK38: 40 | BM38: 0 | BN38: -1 | BO38: 0
BF39: 8 | BG39: 1 | BH39: 8 | BI39: 0 | BJ39: 7 | BK39: 30 | BM39: 0 | BN39: -1 | BO39: 0 | BR39: 7.4 | BU39: 6.2
BF40: 9 | BG40: 1 | BH40: 9 | BI40: 0 | BJ40: 8 | BK40: 20 | BM40: 0 | BN40: -1 | BO40: 0
BF41: 10 | BG41: 1 | BH41: 10 | BI41: 0 | BJ41: 9 | BK41: 10 | BM41: 0 | BN41: -1 | BO41: 0
BF42: 11 | BG42: 1 | BH42: 11 | BI42: 0 | BJ42: 10 | BK42: 0 | BM42: 0 | BN42: -1 | BO42: 0
BM43: MAX | BN43: =BJ25-1 -> -1 | BO43: 0
BB45: 140 | BC45: 140
AV46: z cena | BB46: 140 | BC46: 140
BB47: 120 | BC47: 120
BB48: 100 | BC48: 100 | BJ48: R O Z P O N P R Ů V L A K - Viditelný
BB49: 60 | BC49: 60
H50: 2 | I50: 2.2 | J50: 2.4 | K50: 2.6 | L50: 2.8 | M50: 3 | N50: 3.2 | O50: 3.4 | P50: 3.6 | Q50: 3.8 | R50: 4 | S50: 4.2 | T50: 4.4 | U50: 4.6 | V50: 4.8 | W50: 5 | X50: 5.2 | Y50: 5.4 | Z50: 5.6 | AA50: 5.8 | AB50: 6 | AC50: 6.2 | AD50: 6.4 | AE50: 6.6 | AF50: 6.8 | AG50: 7 | AH50: 7.2 | AI50: 7.4 | AJ50: 7.6 | AK50: 7.8 | AL50: 8 | AW50: z plocha | BB50: 40 | BC50: 40 | BL50: 2,0m | BM50: 2,2m | BN50: 2,4m | BO50: 2,6m | BP50: 2,8m | BQ50: 3,0m | BR50: 3,2m | BS50: 3,4m | BT50: 3,6m | BU50: 3,8m | BV50: 4,0m | BW50: 4,2m | BX50: 4,4m | BY50: 4,6m | BZ50: 4,8m | CA50: 5,0m | CB50: 5,2m | CC50: 5,4m | CD50: 5,6m | CE50: 5,8m | CF50: 6,0m | CG50: 6,2m | CH50: 6,4m | CI50: 6,6m | CJ50: 6,8m | CK50: 7,0m | CL50: 7,2m | CM50: 7,4m | CN50: 7,6m | CO50: 7,8m | CP50: 8m
C51: 1 | D51: skrytý průvlak | G51: 2 | H51: =IF(IF($C$53=1,BM93,IF($C$53=2,BL53,0))=0,"",IF($C$53=1,BM93,IF($C$53=2,BL53,0))) ->  | I51: =IF(IF($C$53=1,BN93,IF($C$53=2,BM53,0))=0,"",IF($C$53=1,BN93,IF($C$53=2,BM53,0))) ->  | BB51: 30 | BC51: 30
C52: 2 | D52: viditelný průvlak | G52: 2.2 | H52: =IF(IF($C$53=1,BM94,IF($C$53=2,BL54,0))=0,"",IF($C$53=1,BM94,IF($C$53=2,BL54,0))) ->  | BB52: 20 | BC52: 20 | BI52: ROZPON DESKA | BJ52: 1,8m
C53: =IF(C18=D51,1,IF(C18=D52,2,0)) -> 2 | G53: 2.4 | H53: =IF(IF($C$53=1,BM95,IF($C$53=2,BL55,0))=0,"",IF($C$53=1,BM95,IF($C$53=2,BL55,0))) ->  | BB53: 10 | BC53: 10 | BJ53: 2,0m
G54: 2.6 | H54: =IF(IF($C$53=1,BM96,IF($C$53=2,BL56,0))=0,"",IF($C$53=1,BM96,IF($C$53=2,BL56,0))) ->  | BB54: 0 | BC54: 0 | BJ54: 2,2m
G55: 2.8 | H55: =IF(IF($C$53=1,BM97,IF($C$53=2,BL57,0))=0,"",IF($C$53=1,BM97,IF($C$53=2,BL57,0))) ->  | AV55: tlouštka desky | BJ55: 2,4m
G56: 3 | H56: =IF(IF($C$53=1,BM98,IF($C$53=2,BL58,0))=0,"",IF($C$53=1,BM98,IF($C$53=2,BL58,0))) ->  | BJ56: 2,6m
G57: 3.2 | H57: =IF(IF($C$53=1,BM99,IF($C$53=2,BL59,0))=0,"",IF($C$53=1,BM99,IF($C$53=2,BL59,0))) ->  | BJ57: 2,7m
G58: 3.4 | H58: =IF(IF($C$53=1,BM100,IF($C$53=2,BL60,0))=0,"",IF($C$53=1,BM100,IF($C$53=2,BL60,0))) ->  | BJ58: 3,0m
G59: 3.6 | H59: =IF(IF($C$53=1,BM101,IF($C$53=2,BL61,0))=0,"",IF($C$53=1,BM101,IF($C$53=2,BL61,0))) ->  | BJ59: 3,2m
G60: 3.8 | H60: =IF(IF($C$53=1,BM102,IF($C$53=2,BL62,0))=0,"",IF($C$53=1,BM102,IF($C$53=2,BL62,0))) ->  | BJ60: 3,4m
G61: 4 | H61: =IF(IF($C$53=1,BM103,IF($C$53=2,BL63,0))=0,"",IF($C$53=1,BM103,IF($C$53=2,BL63,0))) ->  | BJ61: 3,6m
G62: 4.2 | H62: =IF(IF($C$53=1,BM104,IF($C$53=2,BL64,0))=0,"",IF($C$53=1,BM104,IF($C$53=2,BL64,0))) ->  | BJ62: 3,8m
G63: 4.4 | H63: =IF(IF($C$53=1,BM105,IF($C$53=2,BL65,0))=0,"",IF($C$53=1,BM105,IF($C$53=2,BL65,0))) ->  | BJ63: 4,0m
G64: 4.6 | H64: =IF(IF($C$53=1,BM106,IF($C$53=2,BL66,0))=0,"",IF($C$53=1,BM106,IF($C$53=2,BL66,0))) ->  | BJ64: 4,2m
G65: 4.8 | H65: =IF(IF($C$53=1,BM107,IF($C$53=2,BL67,0))=0,"",IF($C$53=1,BM107,IF($C$53=2,BL67,0))) ->  | BJ65: 4,4m
G66: 5 | H66: =IF(IF($C$53=1,BM108,IF($C$53=2,BL68,0))=0,"",IF($C$53=1,BM108,IF($C$53=2,BL68,0))) ->  | BJ66: 4,6m
G67: 5.2 | H67: =IF(IF($C$53=1,BM109,IF($C$53=2,BL69,0))=0,"",IF($C$53=1,BM109,IF($C$53=2,BL69,0))) ->  | BJ67: 4,8m
G68: 5.4 | H68: =IF(IF($C$53=1,BM110,IF($C$53=2,BL70,0))=0,"",IF($C$53=1,BM110,IF($C$53=2,BL70,0))) ->  | BJ68: 5,0m
G69: 5.6 | H69: =IF(IF($C$53=1,BM111,IF($C$53=2,BL71,0))=0,"",IF($C$53=1,BM111,IF($C$53=2,BL71,0))) ->  | BJ69: 5,2m
G70: 5.8 | H70: =IF(IF($C$53=1,BM112,IF($C$53=2,BL72,0))=0,"",IF($C$53=1,BM112,IF($C$53=2,BL72,0))) ->  | BJ70: 5,4m
G71: 6 | H71: =IF(IF($C$53=1,BM113,IF($C$53=2,BL73,0))=0,"",IF($C$53=1,BM113,IF($C$53=2,BL73,0))) ->  | BJ71: 5,6m
G72: 6.2 | H72: =IF(IF($C$53=1,BM114,IF($C$53=2,BL74,0))=0,"",IF($C$53=1,BM114,IF($C$53=2,BL74,0))) ->  | BJ72: 5,8m
G73: 6.4 | H73: =IF(IF($C$53=1,BM115,IF($C$53=2,BL75,0))=0,"",IF($C$53=1,BM115,IF($C$53=2,BL75,0))) ->  | BJ73: 6,0m
G74: 6.6 | H74: =IF(IF($C$53=1,BM116,IF($C$53=2,BL76,0))=0,"",IF($C$53=1,BM116,IF($C$53=2,BL76,0))) ->  | BJ74: 6,2m
G75: 6.8 | H75: =IF(IF($C$53=1,BM117,IF($C$53=2,BL77,0))=0,"",IF($C$53=1,BM117,IF($C$53=2,BL77,0))) ->  | BJ75: 6,4m
G76: 7 | H76: =IF(IF($C$53=1,BM118,IF($C$53=2,BL78,0))=0,"",IF($C$53=1,BM118,IF($C$53=2,BL78,0))) ->  | BJ76: 6,6m
G77: 7.2 | H77: =IF(IF($C$53=1,BM119,IF($C$53=2,BL79,0))=0,"",IF($C$53=1,BM119,IF($C$53=2,BL79,0))) ->  | BJ77: 6,8m
G78: 7.4 | H78: =IF(IF($C$53=1,BM120,IF($C$53=2,BL80,0))=0,"",IF($C$53=1,BM120,IF($C$53=2,BL80,0))) ->  | BJ78: 7,0m
G79: 7.6 | H79: =IF(IF($C$53=1,BM121,IF($C$53=2,BL81,0))=0,"",IF($C$53=1,BM121,IF($C$53=2,BL81,0))) ->  | BJ79: 7,2m
G80: 7.8 | H80: =IF(IF($C$53=1,BM122,IF($C$53=2,BL82,0))=0,"",IF($C$53=1,BM122,IF($C$53=2,BL82,0))) ->  | BJ80: 7,4m
G81: 8 | H81: =IF(IF($C$53=1,BM123,IF($C$53=2,BL83,0))=0,"",IF($C$53=1,BM123,IF($C$53=2,BL83,0))) ->  | BJ81: 7,6m
BJ82: 7,8m
BJ83: 8,0m
H84: 2 | I84: 2.2 | J84: 2.4 | K84: 2.6 | L84: 2.8 | M84: 3 | N84: 3.2 | O84: 3.4 | P84: 3.6 | Q84: 3.8 | R84: 4 | S84: 4.2 | T84: 4.4 | U84: 4.6 | V84: 4.8 | W84: 5 | X84: 5.2 | Y84: 5.4 | Z84: 5.6 | AA84: 5.8 | AB84: 6 | AC84: 6.2 | AD84: 6.4 | AE84: 6.6 | AF84: 6.8 | AG84: 7 | AH84: 7.2 | AI84: 7.4 | AJ84: 7.6 | AK84: 7.8 | AL84: 8
G85: 2 | H85: =(BM92-BL52)/(MIN(BL52,BM92))*100 ->  | I85: =(BN92-BM52)/(MIN(BM52,BN92))*100 -> 
G86: 2.2 | H86: =(BM93-BL53)/(MIN(BL53,BM93))*100 -> 
G87: 2.4 | H87: =(BM94-BL54)/(MIN(BL54,BM94))*100 ->  | AY87: s
G88: 2.6 | H88: =(BM95-BL55)/(MIN(BL55,BM95))*100 ->  | BM88: R O Z P O N P R Ů V L A K - Skrytý
G89: 2.8 | H89: =(BM96-BL56)/(MIN(BL56,BM96))*100 -> 
G90: 3 | H90: =(BM97-BL57)/(MIN(BL57,BM97))*100 ->  | BM90: 2,0m | BN90: 2,2m | BO90: 2,4m | BP90: 2,6m | BQ90: 2,8m | BR90: 3,0m | BS90: 3,2m | BT90: 3,4m | BU90: 3,6m | BV90: 3,8m | BW90: 4,0m | BX90: 4,2m | BY90: 4,4m | BZ90: 4,6m | CA90: 4,8m | CB90: 5,0m | CC90: 5,2m | CD90: 5,4m | CE90: 5,6m | CF90: 5,8m | CG90: 6,0m | CH90: 6,2m | CI90: 6,4m | CJ90: 6,6m | CK90: 6,8m | CL90: 7,0m | CM90: 7,2m | CN90: 7,4m | CO90: 7,6m | CP90: 7,8m | CQ90: 8m
G91: 3.2 | H91: =(BM98-BL58)/(MIN(BL58,BM98))*100 -> 
G92: 3.4 | H92: =(BM99-BL59)/(MIN(BL59,BM99))*100 ->  | BJ92: ROZPON DESKA | BK92: 1,8m
G93: 3.6 | H93: =(BM100-BL60)/(MIN(BL60,BM100))*100 ->  | BK93: 2,0m
G94: 3.8 | H94: =(BM101-BL61)/(MIN(BL61,BM101))*100 ->  | BK94: 2,2m
G95: 4 | H95: =(BM102-BL62)/(MIN(BL62,BM102))*100 ->  | BK95: 2,4m
G96: 4.2 | H96: =(BM103-BL63)/(MIN(BL63,BM103))*100 ->  | BK96: 2,6m
G97: 4.4 | H97: =(BM104-BL64)/(MIN(BL64,BM104))*100 ->  | BK97: 2,7m
G98: 4.6 | H98: =(BM105-BL65)/(MIN(BL65,BM105))*100 ->  | BK98: 3,0m
G99: 4.8 | H99: =(BM106-BL66)/(MIN(BL66,BM106))*100 ->  | BK99: 3,2m
G100: 5 | H100: =(BM107-BL67)/(MIN(BL67,BM107))*100 ->  | BK100: 3,4m
G101: 5.2 | H101: =(BM108-BL68)/(MIN(BL68,BM108))*100 ->  | BK101: 3,6m
G102: 5.4 | H102: =(BM109-BL69)/(MIN(BL69,BM109))*100 ->  | BK102: 3,8m
G103: 5.6 | H103: =(BM110-BL70)/(MIN(BL70,BM110))*100 ->  | BK103: 4,0m
G104: 5.8 | H104: =(BM111-BL71)/(MIN(BL71,BM111))*100 ->  | BK104: 4,2m
G105: 6 | H105: =(BM112-BL72)/(MIN(BL72,BM112))*100 ->  | BK105: 4,4m
G106: 6.2 | H106: =(BM113-BL73)/(MIN(BL73,BM113))*100 ->  | BK106: 4,6m
G107: 6.4 | H107: =(BM114-BL74)/(MIN(BL74,BM114))*100 ->  | BK107: 4,8m
G108: 6.6 | H108: =(BM115-BL75)/(MIN(BL75,BM115))*100 ->  | BK108: 5,0m
G109: 6.8 | H109: =(BM116-BL76)/(MIN(BL76,BM116))*100 ->  | BK109: 5,2m
G110: 7 | H110: =(BM117-BL77)/(MIN(BL77,BM117))*100 ->  | BK110: 5,4m
G111: 7.2 | H111: =(BM118-BL78)/(MIN(BL78,BM118))*100 ->  | BK111: 5,6m
G112: 7.4 | H112: =(BM119-BL79)/(MIN(BL79,BM119))*100 ->  | BK112: 5,8m
G113: 7.6 | H113: =(BM120-BL80)/(MIN(BL80,BM120))*100 ->  | BK113: 6,0m
G114: 7.8 | H114: =(BM121-BL81)/(MIN(BL81,BM121))*100 ->  | BK114: 6,2m
G115: 8 | H115: =(BM122-BL82)/(MIN(BL82,BM122))*100 ->  | BK115: 6,4m
BK116: 6,6m
BK117: 6,8m
BK118: 7,0m
BK119: 7,2m
BK120: 7,4m
BK121: 7,6m
BK122: 7,8m
BK123: 8,0m

Sheet D_PROG (hidden)
D5: D_VSTUP | E5: od | F5: do | G5: krok | H5: počet
D6: rozpon | E6: 1.8 | F6: 8 | G6: 0.2 | H6: =(F6-E6)/G6+1 -> 32
D7: zaížení | E7: 1 | F7: 6 | G7: 1 | H7: 6
D8: kvalita betonu | E8: 1 | F8: 6 | G8: 1 | H8: 6
D9: výška průřezu | E9: 0.1 | F9: 0.33 | G9: 0.01 | H9: =(F9-E9)/G9+1 -> 24
D10: % vyztužení dolní | E10: 0.2 | F10: 0.7 | G10: 0.1 | H10: 6
D11: % vyztužení horní | E11: 0.2 | F11: 0.7 | G11: 0.1 | H11: 6
H12: =H11*H10*H9*H8*H7*H6 -> 995328
D15: P_VSTUP | E15: od | F15: do | G15: krok | H15: počet
D16: rozpon průvlaku | E16: 2 | F16: 8 | G16: 0.2 | H16: =(F16-E16)/G16+1 -> 31
D17: % vyzt dolní | E17: 0.2 | F17: 0.6 | G17: 0.1 | H17: =(F17-E17)/G17+1 -> 5
D18: % vyzt horní | E18: 0.2 | F18: 0.6 | G18: 0.1 | H18: =(F18-E18)/G18+1 -> 5
D19: výška průřezu | E19: 0.4 | F19: 0.8 | G19: 0.05 | H19: =(F19-E19)/G19+1 -> 9
D20: šířka pruřezu | E20: 0.3 | F20: 0.4 | G20: 0.05 | H20: =(F20-E20)/G20+1 -> 3
H21: =H16*H17*H18*H19*H20 -> 20925
H22: =H21*H6*H7*H8 -> 24105600
D24: PS_VSTUP | E24: od | F24: do | G24: krok | H24: počet
D25: rozpon průvlaku | E25: 2 | F25: 8 | G25: 0.2 | H25: =(F25-E25)/G25+1 -> 31
D26: % vyzt dolní | E26: 0.3 | F26: 1 | G26: 0.2 | H26: =(F26-E26)/G26+1 -> 4.5
D27: % vyzt horní | E27: 0.3 | F27: 1 | G27: 0.2 | H27: =(F27-E27)/G27+1 -> 4.5
H28: =H27*H26*H25 -> 627.75
H29: =H28*H6*H7*H8*H9 -> 17356032
D32: S_VSTUP | E32: od | F32: do | G32: krok | H32: počet
D33: výška sloupu | E33: 1 | F33: 4 | G33: 0.15 | H33: =(F33-E33)/G33+1 -> 21
D34: zatížení | E34: 200 | F34: 8000 | G34: 100 | H34: =(F34-E34)/G34+1 -> 79
D35: typ betonu | E35: 1 | F35: 6 | G35: 1 | H35: =(F35-E35)/G35+1 -> 6
D36: % vyztužení | E36: 2 | F36: 4 | G36: 0.2 | H36: =(F36-E36)/G36+1 -> 11
D37: plocha sloupu | E37: 0.04 | F37: 0.5 | G37: 0.05 | H37: =INT((F37-E37)/G37+1) -> 10
H38: =H34*H37*H36*H35*H33 -> 1094940
